[Event "Titled Tuesday Blitz November 29 Late 2022"]
[White "Pruess, David"]
[Black "Mathur, Rithwik"]
[WhiteFideId "2014254"]
[BlackFideId "30913667"]
[WhiteElo "2430"]
[BlackElo "2011"]
[Result "1-0"]
[Round "05"]
[TimeControl "180+1"]
[Date "2022.11.30"]
[WhiteClock "0:00:34"]
[BlackClock "0:01:10"]

1. e4 {[%clk 0:03:00]}  c5 {[%clk 0:02:58]} 2. Nf3 {[%clk 0:02:58]}  d6 {[%clk 0:02:57]} 3. d4 {[%clk 0:02:58]}  cxd4 {[%clk 0:02:58]} 4. Nxd4 {[%clk 0:02:58]}  Nf6 {[%clk 0:02:59]} 5. Nc3 {[%clk 0:02:58]}  Nc6 {[%clk 0:03:00]} 6. Bc4 {[%clk 0:02:55]}  Bd7 {[%clk 0:02:59]} 7. Bb3 {[%clk 0:02:54]}  g6 {[%clk 0:02:57]} 8. f3 {[%clk 0:02:49]}  Nxd4 {[%clk 0:02:57]} 9. Qxd4 {[%clk 0:02:49]}  Bg7 {[%clk 0:02:57]} 10. Be3 {[%clk 0:02:49]}  O-O {[%clk 0:02:47]} 11. Qd2 {[%clk 0:02:48]}  b5 {[%clk 0:02:45]} 12. a4 {[%clk 0:02:32]}  b4 {[%clk 0:02:42]} 13. Nb5 {[%clk 0:02:32]}  a5 {[%clk 0:02:31]} 14. O-O {[%clk 0:02:22]}  Bc6 {[%clk 0:02:23]} 15. Nd4 {[%clk 0:01:56]}  Bb7 {[%clk 0:02:22]} 16. Rad1 {[%clk 0:01:51]}  d5 {[%clk 0:02:16]} 17. e5 {[%clk 0:01:50]}  Nd7 {[%clk 0:02:13]} 18. e6 {[%clk 0:01:33]}  Nc5 {[%clk 0:02:09]} 19. exf7+ {[%clk 0:01:33]}  Rxf7 {[%clk 0:02:06]} 20. Rfe1 {[%clk 0:01:19]}  e5 {[%clk 0:02:03]} 21. Nc6 {[%clk 0:00:55]}  Nxb3 {[%clk 0:01:50]} 22. Nxd8 {[%clk 0:00:54]}  Nxd2 {[%clk 0:01:50]} 23. Nxf7 {[%clk 0:00:54]}  Nxf3+ {[%clk 0:01:32]} 24. gxf3 {[%clk 0:00:55]}  Kxf7 {[%clk 0:01:32]} 25. Bb6 {[%clk 0:00:51]}  Rc8 {[%clk 0:01:19]} 26. Rd2 {[%clk 0:00:41]}  d4 {[%clk 0:01:10]} 27. Bxa5 {[%clk 0:00:38]}  Bxf3 {[%clk 0:01:10]} 28. Rf2 {[%clk 0:00:35]}  e4 {[%clk 0:01:10]} 29. Rxe4 {[%clk 0:00:34]} 1-0


[Site "https://www.chess.com"]

[Event "Titled Tuesday Blitz November 29 Late 2022"]
[White "Przybylski, Wojciech"]
[Black "Korchmar, Vasiliy"]
[WhiteFideId "1117599"]
[BlackFideId "24131750"]
[WhiteElo "2221"]
[BlackElo "2370"]
[Result "0-1"]
[Round "05"]
[TimeControl "180+1"]
[Date "2022.11.30"]
[WhiteClock "0:00:01"]
[BlackClock "0:00:11"]

1. e4 {[%clk 0:02:48]}  c5 {[%clk 0:02:59]} 2. Nf3 {[%clk 0:02:47]}  d6 {[%clk 0:03:00]} 3. d4 {[%clk 0:02:45]}  cxd4 {[%clk 0:03:01]} 4. Nxd4 {[%clk 0:02:44]}  Nf6 {[%clk 0:03:02]} 5. Nc3 {[%clk 0:02:44]}  Nc6 {[%clk 0:03:02]} 6. h3 {[%clk 0:02:42]}  g6 {[%clk 0:03:01]} 7. Be3 {[%clk 0:02:41]}  Bg7 {[%clk 0:03:01]} 8. Be2 {[%clk 0:02:41]}  O-O {[%clk 0:03:01]} 9. O-O {[%clk 0:02:41]}  a6 {[%clk 0:02:58]} 10. a4 {[%clk 0:02:39]}  Bd7 {[%clk 0:02:52]} 11. Nb3 {[%clk 0:02:38]}  Rc8 {[%clk 0:02:48]} 12. f4 {[%clk 0:02:35]}  Be6 {[%clk 0:02:41]} 13. Bf3 {[%clk 0:02:32]}  Nd7 {[%clk 0:02:18]} 14. Kh2 {[%clk 0:02:18]}  Nb6 {[%clk 0:02:17]} 15. Nd2 {[%clk 0:02:07]}  Nd4 {[%clk 0:02:08]} 16. a5 {[%clk 0:01:55]}  Nxf3+ {[%clk 0:02:06]} 17. Rxf3 {[%clk 0:01:44]}  Nc4 {[%clk 0:02:06]} 18. Nxc4 {[%clk 0:01:43]}  Rxc4 {[%clk 0:02:06]} 19. Bd2 {[%clk 0:01:25]}  d5 {[%clk 0:01:59]} 20. Nxd5 {[%clk 0:01:20]}  Bxd5 {[%clk 0:02:00]} 21. exd5 {[%clk 0:01:20]}  Qxd5 {[%clk 0:01:57]} 22. c3 {[%clk 0:00:36]}  Rd8 {[%clk 0:01:53]} 23. Qe2 {[%clk 0:00:35]}  Re4 {[%clk 0:01:48]} 24. Be3 {[%clk 0:00:35]}  e5 {[%clk 0:01:24]} 25. Qf2 {[%clk 0:00:31]}  exf4 {[%clk 0:01:04]} 26. Bxf4 {[%clk 0:00:31]}  Rde8 {[%clk 0:01:01]} 27. Qg3 {[%clk 0:00:12]}  Re2 {[%clk 0:00:58]} 28. Raf1 {[%clk 0:00:11]}  Rxb2 {[%clk 0:00:53]} 29. Bc1 {[%clk 0:00:10]}  Be5 {[%clk 0:00:54]} 30. Bf4 {[%clk 0:00:08]}  Bxf4 {[%clk 0:00:53]} 31. Qxf4 {[%clk 0:00:08]}  Ree2 {[%clk 0:00:49]} 32. Rg1 {[%clk 0:00:03]}  Qe5 {[%clk 0:00:39]} 33. Qxe5 {[%clk 0:00:03]}  Rxe5 {[%clk 0:00:40]} 34. Rd3 {[%clk 0:00:03]}  Rxa5 {[%clk 0:00:39]} 35. Rd7 {[%clk 0:00:03]}  Rf5 {[%clk 0:00:34]} 36. c4 {[%clk 0:00:03]}  a5 {[%clk 0:00:30]} 37. Rd4 {[%clk 0:00:03]}  a4 {[%clk 0:00:29]} 38. Ra1 {[%clk 0:00:02]}  Ra5 {[%clk 0:00:24]} 39. c5 {[%clk 0:00:02]}  a3 {[%clk 0:00:24]} 40. Rc4 {[%clk 0:00:01]}  a2 {[%clk 0:00:25]} 41. Rcc1 {[%clk 0:00:01]}  Kf8 {[%clk 0:00:21]} 42. Kg3 {[%clk 0:00:01]}  Ke7 {[%clk 0:00:21]} 43. Kf4 {[%clk 0:00:02]}  Kd7 {[%clk 0:00:21]} 44. Kg5 {[%clk 0:00:02]}  Kc6 {[%clk 0:00:16]} 45. Kf6 {[%clk 0:00:02]}  Rxg2 {[%clk 0:00:13]} 46. Kxf7 {[%clk 0:00:02]}  Rxc5 {[%clk 0:00:14]} 47. Rd1 {[%clk 0:00:02]}  b5 {[%clk 0:00:14]} 48. Kg7 {[%clk 0:00:02]}  h5 {[%clk 0:00:13]} 49. Rd8 {[%clk 0:00:01]}  b4 {[%clk 0:00:14]} 50. Rc8+ {[%clk 0:00:01]}  Kb5 {[%clk 0:00:14]} 51. Ra8 {[%clk 0:00:01]}  b3 {[%clk 0:00:15]} 52. Rb8+ {[%clk 0:00:01]}  Ka4 {[%clk 0:00:14]} 53. Rd1 {[%clk 0:00:01]}  Rc7+ {[%clk 0:00:11]} 0-1


[Site "https://www.chess.com"]

[Event "Titled Tuesday Blitz November 29 Late 2022"]
[White "Rangel, Daniel"]
[Black "Aldokhin, Ivan"]
[WhiteFideId "2124475"]
[BlackFideId "24115720"]
[WhiteElo "2225"]
[BlackElo "2313"]
[Result "1/2-1/2"]
[Round "05"]
[TimeControl "180+1"]
[Date "2022.11.30"]
[WhiteClock "0:00:11"]
[BlackClock "0:00:03"]

1. d4 {[%clk 0:03:00]}  Nf6 {[%clk 0:03:00]} 2. c4 {[%clk 0:03:01]}  g6 {[%clk 0:02:57]} 3. Nc3 {[%clk 0:03:01]}  Bg7 {[%clk 0:02:44]} 4. e4 {[%clk 0:03:01]}  d6 {[%clk 0:02:44]} 5. Nf3 {[%clk 0:03:01]}  O-O {[%clk 0:02:45]} 6. Be2 {[%clk 0:03:02]}  Nc6 {[%clk 0:02:45]} 7. O-O {[%clk 0:03:02]}  Re8 {[%clk 0:02:45]} 8. d5 {[%clk 0:03:02]}  Nb4 {[%clk 0:02:45]} 9. a3 {[%clk 0:02:55]}  Na6 {[%clk 0:02:45]} 10. Rb1 {[%clk 0:02:55]}  e6 {[%clk 0:02:44]} 11. b4 {[%clk 0:02:33]}  exd5 {[%clk 0:02:43]} 12. exd5 {[%clk 0:02:31]}  Nb8 {[%clk 0:02:31]} 13. Bb2 {[%clk 0:02:20]}  a5 {[%clk 0:02:10]} 14. b5 {[%clk 0:02:14]}  Nbd7 {[%clk 0:02:05]} 15. Nd4 {[%clk 0:02:05]}  Nc5 {[%clk 0:02:03]} 16. b6 {[%clk 0:02:03]}  cxb6 {[%clk 0:01:55]} 17. Ncb5 {[%clk 0:02:02]}  Nfe4 {[%clk 0:01:42]} 18. Bf3 {[%clk 0:01:55]}  h5 {[%clk 0:01:10]} 19. g3 {[%clk 0:01:48]}  Bh3 {[%clk 0:01:04]} 20. Re1 {[%clk 0:01:45]}  Qd7 {[%clk 0:00:42]} 21. Qc2 {[%clk 0:01:30]}  Ng5 {[%clk 0:00:35]} 22. Bh1 {[%clk 0:01:26]}  Rxe1+ {[%clk 0:00:25]} 23. Rxe1 {[%clk 0:01:19]}  Re8 {[%clk 0:00:26]} 24. Rxe8+ {[%clk 0:01:00]}  Qxe8 {[%clk 0:00:25]} 25. Qd1 {[%clk 0:00:54]}  Nd3 {[%clk 0:00:19]} 26. Bc3 {[%clk 0:00:49]}  Qe7 {[%clk 0:00:09]} 27. Qe2 {[%clk 0:00:37]}  Qxe2 {[%clk 0:00:07]} 28. Nxe2 {[%clk 0:00:38]}  Bf8 {[%clk 0:00:03]} 29. f4 {[%clk 0:00:30]}  Nh7 {[%clk 0:00:02]} 30. Bd4 {[%clk 0:00:25]}  Bd7 {[%clk 0:00:02]} 31. Bxb6 {[%clk 0:00:22]}  Bxb5 {[%clk 0:00:03]} 32. cxb5 {[%clk 0:00:22]}  Nf6 {[%clk 0:00:02]} 33. Bxa5 {[%clk 0:00:21]}  Nd7 {[%clk 0:00:02]} 34. Bc3 {[%clk 0:00:20]}  Bg7 {[%clk 0:00:03]} 35. Bxg7 {[%clk 0:00:19]}  Kxg7 {[%clk 0:00:04]} 36. a4 {[%clk 0:00:19]}  Nb2 {[%clk 0:00:03]} 37. a5 {[%clk 0:00:17]}  Nc5 {[%clk 0:00:03]} 38. Nc3 {[%clk 0:00:16]}  Nc4 {[%clk 0:00:04]} 39. a6 {[%clk 0:00:14]}  bxa6 {[%clk 0:00:04]} 40. bxa6 {[%clk 0:00:15]}  Nxa6 {[%clk 0:00:04]} 41. Kf2 {[%clk 0:00:15]}  Nc5 {[%clk 0:00:05]} 42. Ke2 {[%clk 0:00:14]}  f5 {[%clk 0:00:05]} 43. Bg2 {[%clk 0:00:12]}  Kf6 {[%clk 0:00:05]} 44. Kf3 {[%clk 0:00:11]}  Nd2+ {[%clk 0:00:04]} 45. Ke2 {[%clk 0:00:11]}  Nc4 {[%clk 0:00:04]} 46. Kf3 {[%clk 0:00:11]}  Nd3 {[%clk 0:00:04]} 47. Bf1 {[%clk 0:00:10]}  Nd2+ {[%clk 0:00:03]} 48. Ke2 {[%clk 0:00:10]}  Nxf1 {[%clk 0:00:04]} 49. Kxf1 {[%clk 0:00:10]}  Nb4 {[%clk 0:00:03]} 50. Ke2 {[%clk 0:00:10]}  Ke7 {[%clk 0:00:03]} 51. Ke3 {[%clk 0:00:11]}  Kf6 {[%clk 0:00:02]} 52. Kd4 {[%clk 0:00:10]}  Nc2+ {[%clk 0:00:02]} 53. Kd3 {[%clk 0:00:10]}  Ne1+ {[%clk 0:00:03]} 54. Ke2 {[%clk 0:00:11]}  Nc2 {[%clk 0:00:02]} 55. Kd3 {[%clk 0:00:11]}  Nb4+ {[%clk 0:00:02]} 56. Kc4 {[%clk 0:00:11]}  Nc2 {[%clk 0:00:03]} 57. Kd3 {[%clk 0:00:11]} 1/2-1/2


[Site "https://www.chess.com"]

[Event "Titled Tuesday Blitz November 29 Late 2022"]
[White "Reprintsev, Alexander"]
[Black "Hardaway, Brewington"]
[WhiteFideId "14100541"]
[BlackFideId "30941849"]
[WhiteElo "2230"]
[BlackElo "2159"]
[Result "0-1"]
[Round "05"]
[TimeControl "180+1"]
[Date "2022.11.30"]
[WhiteClock "0:00:17"]
[BlackClock "0:00:03"]

1. e4 {[%clk 0:02:55]}  e5 {[%clk 0:02:58]} 2. f4 {[%clk 0:02:54]}  exf4 {[%clk 0:02:55]} 3. Bc4 {[%clk 0:02:54]}  Ne7 {[%clk 0:02:55]} 4. Nc3 {[%clk 0:02:53]}  Ng6 {[%clk 0:02:53]} 5. d4 {[%clk 0:02:51]}  Qh4+ {[%clk 0:02:52]} 6. Kf1 {[%clk 0:02:50]}  c6 {[%clk 0:02:48]} 7. Nf3 {[%clk 0:02:50]}  Qd8 {[%clk 0:02:36]} 8. Ne2 {[%clk 0:02:49]}  d5 {[%clk 0:02:21]} 9. exd5 {[%clk 0:02:49]}  cxd5 {[%clk 0:02:21]} 10. Bb5+ {[%clk 0:02:48]}  Bd7 {[%clk 0:02:22]} 11. Bxd7+ {[%clk 0:02:47]}  Qxd7 {[%clk 0:02:23]} 12. Nxf4 {[%clk 0:02:46]}  Bd6 {[%clk 0:02:22]} 13. Qe2+ {[%clk 0:02:45]}  Kf8 {[%clk 0:02:12]} 14. Nxd5 {[%clk 0:02:44]}  Nc6 {[%clk 0:02:12]} 15. Bd2 {[%clk 0:02:28]}  Re8 {[%clk 0:02:07]} 16. Qd3 {[%clk 0:02:22]}  h5 {[%clk 0:01:56]} 17. Re1 {[%clk 0:02:16]}  Rxe1+ {[%clk 0:01:53]} 18. Kxe1 {[%clk 0:02:14]}  h4 {[%clk 0:01:46]} 19. Kd1 {[%clk 0:02:11]}  Rh5 {[%clk 0:01:39]} 20. c4 {[%clk 0:02:10]}  b5 {[%clk 0:01:27]} 21. b3 {[%clk 0:02:03]}  bxc4 {[%clk 0:01:25]} 22. bxc4 {[%clk 0:02:04]}  Nce7 {[%clk 0:01:24]} 23. Nc3 {[%clk 0:01:58]}  Qg4 {[%clk 0:01:21]} 24. Kc2 {[%clk 0:01:45]}  Qxg2 {[%clk 0:01:11]} 25. Rg1 {[%clk 0:01:43]}  Qh3 {[%clk 0:01:11]} 26. Ne4 {[%clk 0:01:30]}  Bf4 {[%clk 0:01:06]} 27. Neg5 {[%clk 0:01:21]}  Qd7 {[%clk 0:00:50]} 28. Bxf4 {[%clk 0:01:07]}  Nxf4 {[%clk 0:00:48]} 29. Nh7+ {[%clk 0:01:06]}  Ke8 {[%clk 0:00:36]} 30. Qe4 {[%clk 0:01:02]}  Qa4+ {[%clk 0:00:20]} 31. Kc1 {[%clk 0:00:45]}  Qa3+ {[%clk 0:00:18]} 32. Kd1 {[%clk 0:00:44]}  Nd3 {[%clk 0:00:05]} 33. Qa8+ {[%clk 0:00:38]}  Kd7 {[%clk 0:00:05]} 34. Nf8+ {[%clk 0:00:38]}  Kc7 {[%clk 0:00:04]} 35. Kd2 {[%clk 0:00:20]}  Nb4 {[%clk 0:00:02]} 36. Re1 {[%clk 0:00:17]}  Qd3+ {[%clk 0:00:02]} 37. Kc1 {[%clk 0:00:17]}  Qc2# {[%clk 0:00:03]} 0-1


[Site "https://www.chess.com"]

[Event "Titled Tuesday Blitz November 29 Late 2022"]
[White "Rodriguez Santiago, Jaime"]
[Black "Calcada, Lucas Galvan"]
[WhiteFideId "3100898"]
[BlackFideId "22746099"]
[WhiteElo "2025"]
[BlackElo "1523"]
[Result "0-1"]
[Round "05"]
[TimeControl "180+1"]
[Date "2022.11.30"]
[WhiteClock "0:00:19"]
[BlackClock "0:00:15"]

1. c4 {[%clk 0:03:00]}  e5 {[%clk 0:02:58]} 2. Nc3 {[%clk 0:03:01]}  Nf6 {[%clk 0:02:55]} 3. g3 {[%clk 0:03:01]}  d5 {[%clk 0:02:54]} 4. cxd5 {[%clk 0:03:00]}  Nxd5 {[%clk 0:02:54]} 5. Bg2 {[%clk 0:03:00]}  Nb6 {[%clk 0:02:55]} 6. e3 {[%clk 0:03:00]}  Nc6 {[%clk 0:02:55]} 7. Nge2 {[%clk 0:03:01]}  Be7 {[%clk 0:02:54]} 8. O-O {[%clk 0:03:01]}  O-O {[%clk 0:02:55]} 9. f4 {[%clk 0:03:02]}  Bf6 {[%clk 0:02:45]} 10. b3 {[%clk 0:02:51]}  exf4 {[%clk 0:02:38]} 11. Rxf4 {[%clk 0:02:42]}  Re8 {[%clk 0:02:30]} 12. Bb2 {[%clk 0:02:39]}  Nb4 {[%clk 0:02:25]} 13. d4 {[%clk 0:02:32]}  Rxe3 {[%clk 0:02:24]} 14. Ne4 {[%clk 0:02:16]}  Be7 {[%clk 0:02:16]} 15. Qf1 {[%clk 0:02:03]}  Be6 {[%clk 0:02:11]} 16. Nc5 {[%clk 0:01:54]}  Nd3 {[%clk 0:02:04]} 17. Nxe6 {[%clk 0:01:44]}  Rxe6 {[%clk 0:01:47]} 18. d5 {[%clk 0:01:38]}  Rxe2 {[%clk 0:01:37]} 19. Qxe2 {[%clk 0:01:34]}  Nxf4 {[%clk 0:01:36]} 20. gxf4 {[%clk 0:01:31]}  Nxd5 {[%clk 0:01:26]} 21. Rd1 {[%clk 0:01:27]}  c6 {[%clk 0:01:25]} 22. Bxd5 {[%clk 0:01:17]}  cxd5 {[%clk 0:01:23]} 23. Qg2 {[%clk 0:01:17]}  Bf6 {[%clk 0:01:19]} 24. Rxd5 {[%clk 0:01:12]}  Qb6+ {[%clk 0:01:17]} 25. Kh1 {[%clk 0:01:07]}  Bxb2 {[%clk 0:01:15]} 26. Qxb2 {[%clk 0:01:07]}  Qc6 {[%clk 0:01:14]} 27. Qg2 {[%clk 0:00:59]}  Re8 {[%clk 0:01:07]} 28. h3 {[%clk 0:00:46]}  h6 {[%clk 0:01:03]} 29. Kh2 {[%clk 0:00:45]}  Qc1 {[%clk 0:00:54]} 30. Rd2 {[%clk 0:00:40]}  Qe1 {[%clk 0:00:47]} 31. f5 {[%clk 0:00:39]}  Qe5+ {[%clk 0:00:44]} 32. Qg3 {[%clk 0:00:38]}  Qxf5 {[%clk 0:00:40]} 33. Rg2 {[%clk 0:00:38]}  Qe5 {[%clk 0:00:37]} 34. Qxe5 {[%clk 0:00:35]}  Rxe5 {[%clk 0:00:38]} 35. Rc2 {[%clk 0:00:35]}  Re7 {[%clk 0:00:37]} 36. Kg3 {[%clk 0:00:32]}  Kh7 {[%clk 0:00:35]} 37. h4 {[%clk 0:00:32]}  h5 {[%clk 0:00:33]} 38. Rc5 {[%clk 0:00:32]}  g6 {[%clk 0:00:33]} 39. Rc8 {[%clk 0:00:32]}  Kg7 {[%clk 0:00:33]} 40. Rc3 {[%clk 0:00:31]}  f6 {[%clk 0:00:32]} 41. a4 {[%clk 0:00:31]}  Kh6 {[%clk 0:00:32]} 42. a5 {[%clk 0:00:31]}  g5 {[%clk 0:00:32]} 43. hxg5+ {[%clk 0:00:30]}  fxg5 {[%clk 0:00:32]} 44. b4 {[%clk 0:00:31]}  Kg6 {[%clk 0:00:28]} 45. b5 {[%clk 0:00:30]}  h4+ {[%clk 0:00:24]} 46. Kh3 {[%clk 0:00:29]}  Kh5 {[%clk 0:00:24]} 47. b6 {[%clk 0:00:29]}  g4+ {[%clk 0:00:20]} 48. Kg2 {[%clk 0:00:29]}  axb6 {[%clk 0:00:19]} 49. axb6 {[%clk 0:00:28]}  Re2+ {[%clk 0:00:16]} 50. Kf1 {[%clk 0:00:28]}  Rb2 {[%clk 0:00:16]} 51. Rc5+ {[%clk 0:00:27]}  Kg6 {[%clk 0:00:16]} 52. Rc4 {[%clk 0:00:26]}  Kg5 {[%clk 0:00:16]} 53. Rc5+ {[%clk 0:00:26]}  Kf4 {[%clk 0:00:16]} 54. Rc7 {[%clk 0:00:26]}  Rxb6 {[%clk 0:00:14]} 55. Rc4+ {[%clk 0:00:27]}  Kg3 {[%clk 0:00:14]} 56. Rc3+ {[%clk 0:00:26]}  Kh2 {[%clk 0:00:14]} 57. Rc2+ {[%clk 0:00:25]}  Kh3 {[%clk 0:00:15]} 58. Rc3+ {[%clk 0:00:25]}  g3 {[%clk 0:00:15]} 59. Rc1 {[%clk 0:00:23]}  Rf6+ {[%clk 0:00:15]} 60. Kg1 {[%clk 0:00:24]}  b5 {[%clk 0:00:16]} 61. Rb1 {[%clk 0:00:22]}  Rb6 {[%clk 0:00:16]} 62. Rb4 {[%clk 0:00:22]}  Rb8 {[%clk 0:00:14]} 63. Rb3 {[%clk 0:00:21]}  b4 {[%clk 0:00:13]} 64. Rb1 {[%clk 0:00:21]}  b3 {[%clk 0:00:14]} 65. Rb2 {[%clk 0:00:21]}  Rb7 {[%clk 0:00:14]} 66. Kh1 {[%clk 0:00:20]}  Kg4 {[%clk 0:00:14]} 67. Kg2 {[%clk 0:00:20]}  h3+ {[%clk 0:00:14]} 68. Kh1 {[%clk 0:00:20]}  Rc7 {[%clk 0:00:14]} 69. Rb1 {[%clk 0:00:19]}  b2 {[%clk 0:00:15]} 0-1


[Site "https://www.chess.com"]

[Event "Titled Tuesday Blitz November 29 Late 2022"]
[White "Rorrer, Grayson"]
[Black "Bortnyk, Olexandr"]
[WhiteFideId "30944996"]
[BlackFideId "14120828"]
[WhiteElo "2130"]
[BlackElo "2723"]
[Result "0-1"]
[Round "05"]
[TimeControl "180+1"]
[Date "2022.11.30"]
[WhiteClock "0:00:56"]
[BlackClock "0:00:17"]

1. e4 {[%clk 0:03:00]}  Nf6 {[%clk 0:02:59]} 2. e5 {[%clk 0:03:01]}  Nd5 {[%clk 0:02:58]} 3. d4 {[%clk 0:03:01]}  d6 {[%clk 0:02:58]} 4. Nf3 {[%clk 0:03:02]}  dxe5 {[%clk 0:02:59]} 5. Nxe5 {[%clk 0:03:03]}  c6 {[%clk 0:03:00]} 6. Be2 {[%clk 0:03:03]}  Bf5 {[%clk 0:03:00]} 7. O-O {[%clk 0:03:03]}  Nd7 {[%clk 0:03:00]} 8. Nf3 {[%clk 0:03:01]}  e6 {[%clk 0:03:00]} 9. a3 {[%clk 0:02:57]}  Bd6 {[%clk 0:03:00]} 10. c4 {[%clk 0:02:58]}  N5f6 {[%clk 0:03:00]} 11. Nc3 {[%clk 0:02:58]}  O-O {[%clk 0:03:00]} 12. Bg5 {[%clk 0:02:58]}  Qc7 {[%clk 0:02:59]} 13. Bh4 {[%clk 0:02:59]}  Ne4 {[%clk 0:02:55]} 14. Nxe4 {[%clk 0:02:58]}  Bxe4 {[%clk 0:02:56]} 15. Bg3 {[%clk 0:02:59]}  Bxg3 {[%clk 0:02:56]} 16. hxg3 {[%clk 0:02:59]}  Bxf3 {[%clk 0:02:55]} 17. Bxf3 {[%clk 0:03:00]}  Rad8 {[%clk 0:02:54]} 18. Qc2 {[%clk 0:02:58]}  Nf6 {[%clk 0:02:53]} 19. Rfd1 {[%clk 0:02:57]}  Rd7 {[%clk 0:02:54]} 20. Rd2 {[%clk 0:02:55]}  Rfd8 {[%clk 0:02:54]} 21. Rad1 {[%clk 0:02:56]}  Qa5 {[%clk 0:02:47]} 22. Rd3 {[%clk 0:02:49]}  g6 {[%clk 0:02:42]} 23. b4 {[%clk 0:02:47]}  Qf5 {[%clk 0:02:41]} 24. Qc3 {[%clk 0:02:47]}  h5 {[%clk 0:02:38]} 25. Re1 {[%clk 0:02:41]}  a6 {[%clk 0:02:30]} 26. Rdd1 {[%clk 0:02:23]}  Rd6 {[%clk 0:02:13]} 27. Kf1 {[%clk 0:02:15]}  Nh7 {[%clk 0:02:06]} 28. Re5 {[%clk 0:02:11]}  Qf6 {[%clk 0:02:05]} 29. Qe3 {[%clk 0:02:11]}  Nf8 {[%clk 0:02:01]} 30. Re4 {[%clk 0:01:56]}  Nh7 {[%clk 0:01:53]} 31. Re5 {[%clk 0:01:49]}  Nf8 {[%clk 0:01:49]} 32. Re4 {[%clk 0:01:49]}  R6d7 {[%clk 0:01:50]} 33. Rf4 {[%clk 0:01:43]}  Qg7 {[%clk 0:01:49]} 34. Re4 {[%clk 0:01:38]}  Nh7 {[%clk 0:01:45]} 35. Re5 {[%clk 0:01:35]}  Nf6 {[%clk 0:01:45]} 36. Kg1 {[%clk 0:01:34]}  Kh7 {[%clk 0:01:44]} 37. Qf4 {[%clk 0:01:28]}  Kg8 {[%clk 0:01:40]} 38. Qe3 {[%clk 0:01:27]}  Re7 {[%clk 0:01:35]} 39. Qg5 {[%clk 0:01:19]}  Kf8 {[%clk 0:01:28]} 40. Qf4 {[%clk 0:01:17]}  Nd7 {[%clk 0:01:26]} 41. Re3 {[%clk 0:01:15]}  Qf6 {[%clk 0:01:24]} 42. Qd6 {[%clk 0:01:12]}  Ke8 {[%clk 0:01:21]} 43. Qc7 {[%clk 0:01:07]}  Nf8 {[%clk 0:00:32]} 44. Qe5 {[%clk 0:01:03]}  Qxe5 {[%clk 0:00:31]} 45. Rxe5 {[%clk 0:01:04]}  Nd7 {[%clk 0:00:30]} 46. Ree1 {[%clk 0:01:04]}  Nb6 {[%clk 0:00:30]} 47. c5 {[%clk 0:01:02]}  Nc4 {[%clk 0:00:22]} 48. Rd3 {[%clk 0:00:59]}  Red7 {[%clk 0:00:17]} 49. Red1 {[%clk 0:00:56]}  Nb2 {[%clk 0:00:17]} 0-1


[Site "https://www.chess.com"]

[Event "Titled Tuesday Blitz November 29 Late 2022"]
[White "Rosenberg, Evan S"]
[Black "Dias, Joao Batista"]
[WhiteFideId "2019299"]
[BlackFideId "2108240"]
[WhiteElo "2371"]
[BlackElo "1898"]
[Result "0-1"]
[Round "05"]
[TimeControl "180+1"]
[Date "2022.11.30"]
[WhiteClock "0:00:04"]
[BlackClock "0:01:08"]

1. d4 {[%clk 0:03:00]}  d5 {[%clk 0:02:59]} 2. Nf3 {[%clk 0:03:01]}  c6 {[%clk 0:03:00]} 3. c3 {[%clk 0:03:01]}  Nf6 {[%clk 0:03:00]} 4. Qc2 {[%clk 0:03:01]}  g6 {[%clk 0:02:59]} 5. Bf4 {[%clk 0:02:54]}  Bg7 {[%clk 0:02:58]} 6. h3 {[%clk 0:02:53]}  O-O {[%clk 0:02:58]} 7. Nbd2 {[%clk 0:02:51]}  Re8 {[%clk 0:02:58]} 8. e3 {[%clk 0:02:47]}  Nbd7 {[%clk 0:02:58]} 9. Be2 {[%clk 0:02:34]}  Nh5 {[%clk 0:02:56]} 10. Bh2 {[%clk 0:02:29]}  e5 {[%clk 0:02:54]} 11. Nxe5 {[%clk 0:02:29]}  Nxe5 {[%clk 0:02:53]} 12. dxe5 {[%clk 0:02:29]}  Bxe5 {[%clk 0:02:51]} 13. Bxh5 {[%clk 0:02:29]}  Bxh2 {[%clk 0:02:50]} 14. Rxh2 {[%clk 0:02:28]}  gxh5 {[%clk 0:02:50]} 15. O-O-O {[%clk 0:02:27]}  Qg5 {[%clk 0:02:49]} 16. Nf3 {[%clk 0:02:21]}  Qg6 {[%clk 0:02:48]} 17. Qa4 {[%clk 0:02:15]}  b5 {[%clk 0:02:45]} 18. Qf4 {[%clk 0:02:07]}  Re4 {[%clk 0:02:39]} 19. Qc7 {[%clk 0:01:52]}  b4 {[%clk 0:02:33]} 20. Ne5 {[%clk 0:01:40]}  Qe6 {[%clk 0:02:25]} 21. Qd8+ {[%clk 0:00:53]}  Kg7 {[%clk 0:02:24]} 22. Qg5+ {[%clk 0:00:54]}  Kf8 {[%clk 0:02:23]} 23. Nd3 {[%clk 0:00:42]}  bxc3 {[%clk 0:02:21]} 24. Nc5 {[%clk 0:00:35]}  cxb2+ {[%clk 0:02:19]} 25. Kb1 {[%clk 0:00:35]}  Qe5 {[%clk 0:02:19]} 26. Qh6+ {[%clk 0:00:29]}  Ke7 {[%clk 0:02:06]} 27. Nxe4 {[%clk 0:00:28]}  Qxh2 {[%clk 0:02:04]} 28. Qf6+ {[%clk 0:00:25]}  Kf8 {[%clk 0:02:03]} 29. Ng5 {[%clk 0:00:14]}  Qc7 {[%clk 0:01:58]} 30. Nxh7+ {[%clk 0:00:13]}  Ke8 {[%clk 0:01:53]} 31. Qh8+ {[%clk 0:00:13]}  Ke7 {[%clk 0:01:52]} 32. Qf8+ {[%clk 0:00:13]}  Ke6 {[%clk 0:01:50]} 33. Ng5+ {[%clk 0:00:12]}  Kf6 {[%clk 0:01:50]} 34. Qh6+ {[%clk 0:00:10]}  Ke7 {[%clk 0:01:48]} 35. Qxh5 {[%clk 0:00:10]}  Be6 {[%clk 0:01:48]} 36. Nxe6 {[%clk 0:00:09]}  Kxe6 {[%clk 0:01:45]} 37. Qg4+ {[%clk 0:00:09]}  Ke7 {[%clk 0:01:44]} 38. Qb4+ {[%clk 0:00:07]}  c5 {[%clk 0:01:43]} 39. Qh4+ {[%clk 0:00:06]}  Ke6 {[%clk 0:01:36]} 40. Qh6+ {[%clk 0:00:06]}  f6 {[%clk 0:01:34]} 41. e4 {[%clk 0:00:06]}  d4 {[%clk 0:01:31]} 42. Qh5 {[%clk 0:00:05]}  Rd8 {[%clk 0:01:28]} 43. Qf5+ {[%clk 0:00:05]}  Kf7 {[%clk 0:01:27]} 44. Kxb2 {[%clk 0:00:05]}  Rb8+ {[%clk 0:01:25]} 45. Kc2 {[%clk 0:00:05]}  Qb7 {[%clk 0:01:17]} 46. Qh7+ {[%clk 0:00:04]}  Ke6 {[%clk 0:01:16]} 47. Qxb7 {[%clk 0:00:05]}  Rxb7 {[%clk 0:01:16]} 48. Kd3 {[%clk 0:00:04]}  Rb2 {[%clk 0:01:10]} 49. Rd2 {[%clk 0:00:04]}  c4+ {[%clk 0:01:10]} 50. Ke2 {[%clk 0:00:04]}  c3 {[%clk 0:01:08]} 0-1


[Site "https://www.chess.com"]